[Event "FIDE WY-U16 Olympiad 2022"]
[Site "Nakhchivan"]
[Date "2022.10.04"]
[Round "3.35"]
[White "Han, Xuqian Ben"]
[Black "Mohamed Mostafa, Omar"]
[Result "1-0"]
[ECO "B90"]
[WhiteElo "1610"]
[BlackElo "1503"]
[Annotator "NA RC COMBH"]
[PlyCount "65"]
[EventDate "2022.10.02"]
[EventType "team-tourn"]
[EventCountry "AZE"]
[SourceTitle "playchess.com"]
[Source "ChessBase"]
[SourceQuality "1"]
[WhiteTeam "Hong Kong"]
[BlackTeam "Egypt"]
[WhiteTeamCountry "HKG"]
[BlackTeamCountry "EGY"]
[TimeControl "40/5400+30:1800+30"]

1. e4 {[%emt 0:00:02]} c5 {[%emt 0:00:32]} 2. Nf3 {[%emt 0:00:04]} d6 {[%emt 0:00:16]} 3. d4 {[%emt 0:00:03]} cxd4 {[%emt 0:00:04]} 4. Nxd4 {[%emt 0:00:03]} Nf6 {[%emt 0:00:10]} 5. Nc3 {[%emt 0:00:03]} a6 {[%emt 0:00:12]} 6. Be3 {[%emt 0:00:05]} e5 {[%emt 0:00:14]} 7. Nb3 {[%emt 0:00:03]} Be6 {[%emt 0:00:07]} 8. f3 {[%emt 0:00:03]} Be7 {[%emt 0:00:05]} 9. Qd2 {[%emt 0:00:05]} O-O {[%emt 0:00:22]} 10. O-O-O {[%emt 0:00:15]} a5 {[%emt 0:00:24]} 11. g4 {[%emt 0:14:25]} a4 {[%emt 0:00:16]} 12. Na1 {[%emt 0:00:10]} a3 {[%emt 0:00:07]} 13. b3 {[%emt 0:00:03]} Na6 {[%emt 0:00:35]} 14. g5 {[%emt 0:01:05]} Nh5 {[%emt 0:00:09]} 15. Nb5 {[%emt 0:01:32]} Qc8 {[%emt 0:26:39]} 16. c4 {[%emt 0:01:47]} Rd8 {[%emt 0:12:56]} 17. Nc2 {[%emt 0:04:54]} Nc5 {[%emt 0:05:37]} 18. Qc3 {[%emt 0:03:25]} f5 {[%emt 0:14:10]} 19. gxf6 {[%emt 0:03:49]} Nxf6 {[%emt 0:00:12]} 20. Kb1 {[%emt 0:02:24]} b6 {[%emt 0:10:47]} 21. h4 {[%emt 0:06:17]} Qb7 {[%emt 0:01:24]} 22. Bh3 {[%emt 0:04:35]} Bd7 {[%emt 0:04:13]} 23. Bxd7 {[%emt 0:01:47]} Rxd7 {[%emt 0:00:24]} 24. Bxc5 {[%emt 0:01:34]} bxc5 {[%emt 0:02:21]} 25. Ne3 {[%emt 0:00:23]} Bf8 {[%emt 0:03:40]} 26. Nf5 {[%emt 0:01:17]} g6 {[%emt 0:02:19]} 27. Rhg1 {[%emt 0:01:46]} Kf7 {[%emt 0:06:00]} 28. Nfxd6+ {[%emt 0:01:49]} Bxd6 {[%emt 0:00:31]} 29. Nxd6+ {[%emt 0:00:18]} Rxd6 {[%emt 0:00:02]} 30. Rxd6 {[%emt 0:00:11]} Nxe4 {[%emt 0:00:24]} 31. fxe4 {[%emt 0:00:28]} Qxe4+ {[%emt 0:00:02]} 32. Qd3 {[%emt 0:00:26]} Qxh4 {[%emt 0:01:27]} 33. Qd5+ {[%emt 0:00:44]} 1-0

[Event "FIDE WY-U16 Olympiad 2022"]
[Site "Nakhchivan"]
[Date "2022.10.05"]
[Round "4.1"]
[White "Samadov, Read"]
[Black "Kilic, Eray"]
[Result "1/2-1/2"]
[ECO "E73"]
[WhiteElo "2455"]
[BlackElo "2428"]
[Annotator "TA"]
[PlyCount "108"]
[EventDate "2022.10.02"]
[EventType "team-tourn"]
[EventCountry "AZE"]
[SourceTitle "playchess.com"]
[Source "ChessBase"]
[SourceQuality "1"]
[WhiteTeam "Azerbaijan"]
[BlackTeam "Turkey"]
[WhiteTeamCountry "AZE"]
[BlackTeamCountry "TUR"]
[TimeControl "40/5400+30:1800+30"]

{[%evp 12,108,47,35,25,38,35,21,21,29,22,-19,-25,-27,0,-3,0,0,0,0,0,0,0,0,0,0,43,46,64,50,62,69,66,46,174,161,157,134,128,140,133,124,144,132,125,129,260,260,239,63,66,39,40,40,44,40,33,33,25,39,33,16,17,22,14,0,9,8,4,0,67,53,52,0,0,0,0,0,0,0,0,0,0,0,0,0,0,0,0,0,0,0,0,0,0,0,0,0,0]} 1. d4 {[%emt 0:00:03]} Nf6 {[%emt 0:00:07]} 2. c4 {[%emt 0:00:08]} g6 {[%emt 0:00:09]} 3. Nc3 {[%emt 0:00:17]} Bg7 {[%emt 0:00:20]} 4. e4 {[%emt 0:00:23]} d6 {[%emt 0:00:09]} 5. Be2 {[%emt 0:00:25]} O-O {[%emt 0:00:10]} 6. Be3 {[%emt 0:00:17]} Nc6 {[%emt 0:00:12][%cal Bb8c6,Bc6e5,Be5g4][%mdl 32]} 7. d5 {[%emt 0:01:35]} Ne5 {[%emt 0:00:15] E73: King's Indian: Averbakh Variation without 6...c5.} 8. f4 {[%emt 0:02:33]} Neg4 {[%emt 0:00:10]} 9. Bc1 {[%emt 0:01:49]} (9. Bd2 $5 {[%cal Rh2h3]}) 9... Nh6 {[%emt 0:14:10]} 10. Nf3 {[%emt 0:10:03] [#]} c6 $146 {[%emt 0:02:03]} ({Predecessor:} 10... e6 11. dxe6 Bxe6 12. O-O c6 13. Qe1 d5 14. cxd5 cxd5 15. e5 Ne4 16. Nd4 Nf5 17. Nxf5 Bxf5 {½-½ (60) Assaubayeva,B (2364)-Ongut,T (2305) Balatonlelle 2020}) 11. Qb3 {[%emt 0:06:17]} cxd5 {[%emt 0:11:32]} 12. cxd5 {[%emt 0:02:47]} Nd7 {[%emt 0:01:13][%cal Bf6d7,Bd7c5,Bc5a4][%mdl 32]} 13. O-O {[%emt 0:08:46]} Nc5 {[%emt 0:01:14]} 14. Qc2 {[%emt 0:03:24]} Bd7 {[%emt 0:02:30]} 15. h3 {[%emt 0:09:22]} Rc8 {[%emt 0:02:54][%cal Oc5a4]} 16. Be3 {[%emt 0:03:21][%cal Of4f5]} Na4 {[%emt 0:09:01]} 17. Nd4 {[%emt 0:02:44] Against b5} (17. Bxa7 $2 b6 18. Qb3 Bxc3 19. bxc3 Ra8 20. Bxb6 Qxb6+ 21. Qxb6 Nxb6 $19) 17... Qa5 {[%emt 0:10:03][%cal Oa4b2]} 18. Rac1 {[%emt 0:05:58]} Qb4 {[%emt 0:10:54]} 19. Qb3 {[%emt 0:04:41]} Qxb3 {[%emt 0:00:07]} 20. axb3 {[%emt 0:00:18]} Nxc3 {[%emt 0:03:35]} 21. bxc3 {[%emt 0:01:45]} (21. Rxc3 f5 $11) 21... a6 {[%emt 0:06:09]} 22. g4 $36 {[%emt 0:02:03][%cal Bg2g4,Bg4g5][%mdl 2080] Black is under pressure.} Kh8 {[%emt 0:03:00]} (22... e5 $1 $14) 23. g5 $18 {[%emt 0:04:15]} Ng8 {[%emt 0:00:02]} 24. h4 {[%emt 0:01:30]} e5 {[%emt 0:04:53]} 25. dxe6 {[%emt 0:03:09]} fxe6 {[%emt 0:00:02]} 26. Bg4 {[%emt 0:01:12][%cal Be2g4,Bg4h3,Bh3d7][%mdl 32]} Rce8 {[%emt 0:00:59]} 27. Rcd1 {[%emt 0:07:13] White is more active.} h5 {[%emt 0:04:31]} 28. Bh3 {[%emt 0:01:04]} e5 {[%emt 0:00:57]} (28... d5 $16) 29. Bxd7 {[%emt 0:02:36]} exd4 {[%emt 0:00:01]} 30. Bxd4 {[%emt 0:02:20] [#]} ({Less strong is} 30. Bxe8 dxe3 31. Bxg6 e2 $14) ({White must play} 30. Rxd4 $18 Re7 31. Bh3 (31. Rxd6 Rxe4 32. Kf2 Bxc3 $18)) 30... Rxe4 $14 {[%emt 0:00:06]} 31. Bxg7+ {[%emt 0:00:39]} (31. Kg2 {keeps more tension.} Bxd4 32. Rxd4 Rxd4 33. cxd4 Rd8 34. Be6) 31... Kxg7 {[%emt 0:00:01]} 32. Rxd6 {[%emt 0:01:16]} Rexf4 {[%emt 0:00:34]} 33. Rxf4 {[%emt 0:01:22]} Rxf4 $18 {[%emt 0:00:02][%mdl 4096] Endgame KRB-KRN} 34. Rb6 {[%emt 0:02:47]} Rxh4 {[%emt 0:00:25]} 35. Rxb7 {[%emt 0:00:28]} Ne7 {[%emt 0:02:58]} 36. Be6 {[%emt 0:05:31]} Kf8 {[%emt 0:00:08]} 37. Rb8+ {[%emt 0:00:06]} Kg7 {[%emt 0:00:04]} 38. Rb7 {[%emt 0:00:12]} Kf8 {[%emt 0:00:07]} 39. Ra7 {[%emt 0:01:16]} Re4 {[%emt 0:00:12]} 40. Rxa6 {[%emt 0:00:55] Hoping for b4.} Re5 {[%emt 0:00:21]} ({Black should play} 40... Re3 $11) 41. c4 $14 {[%emt 0:32:30] Strongly threatening b4.} Rxg5+ {[%emt 0:30:07]} 42. Kh2 {[%emt 0:00:00]} ({White should try} 42. Kf2 $14) 42... Rc5 $11 {[%emt 0:00:00] The position is equal.} 43. b4 {[%emt 0:00:00]} Rc6 {[%emt 0:00:00]} 44. b5 {[%emt 0:00:00]} Rxa6 {[%emt 0:00:00]} 45. bxa6 {[%emt 0:00:00] [#] White threatens a7 and mate. KB-KN} Nc6 {[%emt 0:00:00]} 46. Bd5 {[%emt 0:00:00]} Na7 {[%emt 0:00:00]} 47. Kg3 {[%emt 0:00:00]} Ke7 {[%emt 0:00:00]} 48. Kf4 {[%emt 0:00:00]} Kd6 {[%emt 0:00:00]} 49. Kg5 {[%emt 0:00:00]} Kc5 {[%emt 0:00:00]} 50. Kxg6 {[%emt 0:00:00]} Kb6 {[%emt 0:00:00]} 51. Kxh5 {[%emt 0:00:00]} Kxa6 {[%emt 0:00:00]} 52. c5 {[%emt 0:00:00]} Kb5 {[%emt 0:00:00]} 53. c6 {[%emt 0:00:00]} Nxc6 {[%emt 0:00:00]} 54. Bxc6+ {[%emt 0:00:00]} Kxc6 {[%emt 0:00:00] Black escapes into a draw.  Weighted Error Value: White=0.11 (very precise) /Black=0.17 (very precise)} 1/2-1/2

[Event "FIDE WY-U16 Olympiad 2022"]
[Site "Nakhchivan"]
[Date "2022.10.05"]
[Round "4.1"]
[White "Anand, Batsukh"]
[Black "Chen, Max"]
[Result "1-0"]
[ECO "D94"]
[WhiteElo "2202"]
[BlackElo "2154"]
[Annotator "TA"]
[PlyCount "89"]
[EventDate "2022.10.02"]
[EventType "team-tourn"]
[EventCountry "AZE"]
[SourceTitle "playchess.com"]
[Source "ChessBase"]
[SourceQuality "1"]
[WhiteTeam "Mongolia"]
[BlackTeam "Canada"]
[WhiteTeamCountry "MGL"]
[BlackTeamCountry "CAN"]
[TimeControl "40/5400+30:1800+30"]

{[%evp 19,89,0,12,0,-3,-8,-2,-11,5,-20,0,0,0,-22,6,12,9,17,88,70,94,91,93,87,96,73,100,73,104,100,95,96,81,85,79,81,84,55,53,52,59,73,180,175,330,339,328,327,386,368,510,339,420,431,426,395,375,225,491,481,677,614,618,591,1095,1032,1010,950,1622,1518,5110,3079]} 1. Nf3 {[%emt 0:00:02]} Nf6 {[%emt 0:00:10]} 2. c4 {[%emt 0:00:27]} g6 {[%emt 0:00:48]} 3. d4 {[%emt 0:00:27]} Bg7 {[%emt 0:00:28]} 4. Nc3 {[%emt 0:00:24]} d5 {[%emt 0:00:32]} 5. e3 {[%emt 0:00:17]} O-O {[%emt 0:00:17]} 6. cxd5 {[%emt 0:00:34]} Nxd5 {[%emt 0:00:11]} 7. Bc4 {[%emt 0:00:07]} Nxc3 {[%emt 0:03:31]} 8. bxc3 {[%emt 0:00:06]} c5 {[%emt 0:00:07]} 9. O-O {[%emt 0:00:20]} Qc7 {[%emt 0:01:45] 9...Qc7 scores better than 9...Nc6.} 10. Qe2 {[%emt 0:00:19]} b6 {[%emt 0:04:12]} 11. Ba3 {[%emt 0:00:28] D94: Grünfeld: 4 Nf3 Bg7 5 e3.} Bb7 {[%emt 0:01:05]} 12. Rac1 {[%emt 0:01:20]} Nd7 {[%emt 0:00:45][%cal Bb8d7,Bd7f6,Bf6e8,Be8d6,Bd6e4][%mdl 32]} 13. Rfd1 {[%emt 0:01:48] [#] The position is equal.} Rad8 $146 {[%emt 0:11:12]} ({Predecessor:} 13... a6 14. e4 e6 15. Bd3 b5 16. Bb2 Rfd8 17. c4 b4 18. d5 e5 19. h4 a5 {0-1 (51) D'Costa,L (2445)-Berkes,F (2651) Gibraltar 2009}) 14. h4 {[%emt 0:13:07]} h6 {[%emt 0:07:47]} 15. h5 {[%emt 0:00:40]} g5 {[%emt 0:00:25]} 16. Nh2 {[%emt 0:26:38][%cal Bf3h2,Bh2f1,Bf1e3,Be3f5][%mdl 32]} Kh8 {[%emt 0:11:21]} 17. e4 {[%emt 0:01:15]} Nf6 {[%emt 0:03:40]} 18. Bd3 {[%emt 0:06:16]} e5 {[%emt 0:17:47]} ({Not} 18... cxd4 19. cxd4 Qd7 20. d5 $16) (18... e6 $11) 19. d5 $16 {[%emt 0:12:06]} Bc8 {[%emt 0:01:30]} 20. g4 {[%emt 0:03:43]} Ne8 {[%emt 0:01:40]} 21. Nf1 {[%emt 0:02:24]} Nd6 {[%emt 0:01:37]} 22. Ne3 {[%emt 0:00:41]} Bd7 {[%emt 0:00:50]} 23. Rb1 {[%emt 0:02:40]} b5 {[%emt 0:04:35]} 24. Bxb5 {[%emt 0:01:32]} Nxe4 {[%emt 0:09:15]} 25. Qc2 {[%emt 0:06:56]} Nd6 {[%emt 0:02:44]} 26. Bxd7 {[%emt 0:00:11]} Rxd7 {[%emt 0:00:06]} 27. Nf5 {[%emt 0:00:32]} Qa5 {[%emt 0:04:09]} 28. Rb3 {[%emt 0:04:08] White is more active.} Nxf5 {[%emt 0:05:02]} 29. Qxf5 {[%emt 0:00:09]} Rd6 {[%emt 0:00:09]} 30. Qd3 $36 {[%emt 0:01:27][%mdl 2048] aiming for Qb5. Keeping Black busy.} Rf6 {[%emt 0:01:37] [#] White now steadily converts the win.} (30... Rb6 $16 {was called for.}) 31. Qb5 $1 $18 {[%emt 0:00:30]} Qxb5 {[%emt 0:02:49]} (31... Qd8) 32. Rxb5 {[%emt 0:00:05]} Rf4 {[%emt 0:00:10]} 33. Bxc5 {[%emt 0:00:12]} Rxg4+ {[%emt 0:00:06]} 34. Kf1 {[%emt 0:00:02]} Rd8 {[%emt 0:00:16]} 35. d6 {[%emt 0:01:05]} Rd7 {[%emt 0:01:47]} 36. Rb8+ {[%emt 0:00:19]} Kh7 {[%emt 0:00:05]} 37. Ra8 {[%emt 0:02:03]} Ra4 {[%emt 0:01:05]} 38. a3 {[%emt 0:00:04]} e4 $2 {[%emt 0:00:22]} (38... Bf6 39. Ke2 Rc4 40. Rxa7 Rxa7 41. Bxa7 Bd8) 39. Bb4 {[%emt 0:00:10] [#] Threatens to win with c4. White is clearly winning.} Ra6 {[%emt 0:01:38]} (39... Bf6 $142 40. Rc8 Rd8) 40. Re8 {[%emt 0:00:11]} Rb6 {[%emt 0:02:17]} 41. Re7 {[%emt 0:31:04]} Rbb7 {[%emt 0:30:06]} 42. Rxd7 {[%emt 0:00:46]} Rxd7 {[%emt 0:00:09]} 43. c4 {[%emt 0:00:04][%cal Bc3c4,Bc4c5,Bc5c6][%mdl 32] And now c5 would win.} Bb2 {[%emt 0:00:00]} 44. c5 {[%emt 0:00:00] White wants to mate with c6.} a5 {[%emt 0:00:00]} 45. c6 {[%emt 0:00:00] Weighted Error Value: White=0.18 (very precise) /Black=0.42} 1-0

[Event "FIDE WY-U16 Olympiad 2022"]
[Site "Nakhchivan"]
[Date "2022.10.05"]
[Round "4.2"]
[White "Celik, Hasan Huseyin"]
[Black "Talibov, Shiroghlan"]
[Result "1-0"]
[ECO "B03"]
[WhiteElo "2323"]
[BlackElo "2342"]
[Annotator "TA"]
[PlyCount "87"]
[EventDate "2022.10.02"]
[EventType "team-tourn"]
[EventCountry "AZE"]
[SourceTitle "playchess.com"]
[Source "ChessBase"]
[SourceQuality "1"]
[WhiteTeam "Turkey"]
[BlackTeam "Azerbaijan"]
[WhiteTeamCountry "TUR"]
[BlackTeamCountry "AZE"]
[TimeControl "40/5400+30:1800+30"]

{[%evp 29,87,23,59,37,57,46,79,72,93,77,118,65,75,73,77,64,197,186,197,193,173,177,162,152,293,286,486,191,182,191,285,193,203,195,300,282,399,393,388,394,394,396,442,446,463,457,5200,276,5147,5147,1770,1607,29970,29971,29969,29970,29967,29970,29995,29996]} 1. e4 {[%emt 0:00:09][%cal Be2e4,Be4e5][%mdl 32]} Nf6 {[%emt 0:00:54]} 2. e5 {[%emt 0:00:10]} Nd5 {[%emt 0:00:03]} 3. d4 {[%emt 0:00:13]} d6 {[%emt 0:00:05]} 4. c4 {[%emt 0:00:08]} Nb6 {[%emt 0:00:04]} 5. f4 {[%emt 0:00:07]} dxe5 {[%emt 0:00:04]} 6. fxe5 {[%emt 0:00:13]} Nc6 {[%emt 0:00:04]} 7. Be3 {[%emt 0:00:12]} Bf5 {[%emt 0:00:06]} 8. Nc3 {[%emt 0:00:06]} e6 {[%emt 0:00:06]} 9. Nf3 {[%emt 0:00:15]} Be7 {[%emt 0:00:05]} 10. Be2 {[%emt 0:00:18]} O-O {[%emt 0:00:07]} 11. O-O {[%emt 0:00:06]} f6 {[%emt 0:00:04]} 12. exf6 {[%emt 0:00:06]} Bxf6 {[%emt 0:00:02]} 13. Qd2 {[%emt 0:01:02]} Qe7 {[%emt 0:02:26]} 14. Rad1 {[%emt 0:16:51]} Rad8 {[%emt 0:00:06]} 15. Qc1 {[%emt 0:03:46] 15.Kh1 is more fashionable.} Kh8 {[%emt 0:07:08]} 16. h3 {[%emt 0:00:51] Threatens to win with g4. B03: Alekhine's Defence: Four Pawns Attack.} Bg6 {[%emt 0:00:30]} 17. Kh1 {[%emt 0:04:05]} Rfe8 {[%emt 0:29:34] [#]} 18. b3 $146 {[%emt 0:06:54] White is better.} ({Predecessor:} 18. Rfe1 Qf7 19. c5 Nd5 20. Bg5 Nce7 21. Bc4 c6 22. Ne5 Qg8 23. Nxg6+ Nxg6 24. Ne4 {1-0 (38) Honfi,K-Vukic,M (2480) Bajmok 1978}) 18... a5 {[%emt 0:16:42][%cal Oa5a4]} 19. Bg1 {[%emt 0:02:45]} a4 {[%emt 0:09:25]} 20. Nb5 {[%emt 0:12:37]} (20. bxa4 Rc8 $14) (20. Nxa4 $6 Nxa4 21. bxa4 Ra8 $11) ({White should try} 20. Bd3 $16) 20... axb3 $14 {[%emt 0:03:11]} 21. axb3 {[%emt 0:00:03]} Nc8 {[%emt 0:03:09]} 22. c5 {[%emt 0:17:05] Against Nd6} e5 {[%emt 0:16:03] Loses the game.} (22... N8a7 $14) 23. d5 $18 {[%emt 0:00:48]} e4 {[%emt 0:09:00]} 24. dxc6 {[%emt 0:01:00]} bxc6 {[%emt 0:00:09]} 25. Nbd4 {[%emt 0:00:58]} exf3 {[%emt 0:00:10]} 26. Bxf3 {[%emt 0:00:01]} Bxd4 {[%emt 0:01:44]} (26... Na7 $16 {might work better.} 27. b4 (27. Nxc6 Nxc6 28. Bxc6 Rxd1 $16) 27... h6 28. Bxc6 (28. Nxc6 Nxc6 29. Bxc6 Bg5 $16) 28... Nxc6 29. Nxc6 Rxd1 30. Nxe7 Rxc1 31. Nxg6+ Kh7 32. Rxc1 Kxg6) 27. Bxd4 {[%emt 0:01:19]} ({Resist} 27. Rxd4 $6 Qf6 $18) 27... Na7 $2 {[%emt 0:01:48]} (27... Rf8 28. Bb2 Rf7 29. Bxc6 Rxf1+ 30. Rxf1 Na7) 28. Ba1 $2 {[%emt 0:01:24]} (28. Qa1) 28... Rxd1 {[%emt 0:00:47]} 29. Rxd1 {[%emt 0:00:03]} Qf7 {[%emt 0:00:46]} (29... Bf7 {keeps fighting.} 30. Bc3 Nb5 31. Bxc6 Nxc3 32. Qxc3 (32. Bxe8 Ne2 $15) 32... Rd8) 30. Qc4 {[%emt 0:03:39]} Qxc4 {[%emt 0:00:33]} 31. bxc4 {[%emt 0:00:01] And now Rd7 would win.} Bf5 {[%emt 0:00:13]} (31... Kg8 $142 32. Bc3 Rf8) 32. Be5 {[%emt 0:02:01]} Be6 {[%emt 0:00:43]} (32... h6 {is a better defense.}) 33. Bxc7 {[%emt 0:00:19] This bishop pair is nice.} Bxc4 {[%emt 0:00:19]} 34. Bb6 {[%emt 0:00:09]} Nb5 {[%emt 0:00:35]} 35. Bxc6 {[%emt 0:00:09]} Rf8 {[%emt 0:00:11]} 36. Bf3 {[%emt 0:01:12]} Rb8 {[%emt 0:00:41] [#]} 37. c6 $1 {[%emt 0:00:17]} Rxb6 {[%emt 0:00:13] [#]} (37... h6 $142 38. c7 Re8) (37... Re8 38. c7) 38. Rd8+ $1 {[%emt 0:00:08]} Bg8 {[%emt 0:00:05]} 39. Bd5 {[%emt 0:00:09][%csl Gd5][%cal Rd8g8]} h5 {[%emt 0:00:53]} 40. Bxg8 {[%emt 0:00:58] Intending Bc4+ and mate.} Nc7 {[%emt 0:01:01]} 41. Bd5+ {[%emt 0:30:17] White mates.} Kh7 {[%emt 0:30:13]} 42. Be4+ {[%emt 0:00:01]} Kh6 {[%emt 0:00:04]} 43. Rd6+ {[%emt 0:00:06]} Kg5 {[%emt 0:00:25]} 44. g3 {[%emt 0:00:01] Weighted Error Value: White=0.23 (precise) /Black=0.64} 1-0

[Event "FIDE WY-U16 Olympiad 2022"]
[Site "Nakhchivan"]
[Date "2022.10.05"]
[Round "4.2"]
[White "Chen, Rachel Ruoxuan"]
[Black "Tenuunbold, Battulga"]
[Result "1/2-1/2"]
[ECO "B34"]
[WhiteElo "1805"]
[BlackElo "2128"]
[Annotator "TA"]
[PlyCount "127"]
[EventDate "2022.10.02"]
[EventType "team-tourn"]
[EventCountry "AZE"]
[SourceTitle "playchess.com"]
[Source "ChessBase"]
[SourceQuality "1"]
[WhiteTeam "Canada"]
[BlackTeam "Mongolia"]
[WhiteTeamCountry "CAN"]
[BlackTeamCountry "MGL"]
[TimeControl "40/5400+30:1800+30"]

{[%evp 19,127,0,10,6,8,14,15,15,10,9,20,0,0,0,8,0,0,0,11,0,16,-13,0,-7,-9,-22,-22,-60,-80,-67,-57,-125,-114,-109,-18,-228,-55,-126,0,0,20,18,104,100,108,73,42,47,63,0,0,0,40,0,0,0,0,0,0,0,0,0,0,0,0,0,0,0,0,0,0,0,0,0,0,0,0,0,0,-2,0,0,0,0,0,0,0,0,0,0,0,0,0,0,0,0,0,0,0,0,0,0,0,0,0,0,0,0,0,0]} 1. e4 {[%emt 0:00:04]} c5 {[%emt 0:00:09]} 2. Nf3 {[%emt 0:00:04]} Nc6 {[%emt 0:00:09]} 3. d4 {[%emt 0:00:04]} cxd4 {[%emt 0:00:07]} 4. Nxd4 {[%emt 0:00:03]} Nf6 {[%emt 0:00:10]} 5. Nc3 {[%emt 0:00:05]} e5 {[%emt 0:00:10]} 6. Ndb5 {[%emt 0:00:06]} d6 {[%emt 0:00:06]} 7. Nd5 {[%emt 0:00:05]} Nxd5 {[%emt 0:00:12]} 8. exd5 {[%emt 0:00:03]} Nb8 {[%emt 0:00:07]} 9. a4 {[%emt 0:00:11]} Be7 {[%emt 0:00:57]} 10. Be2 {[%emt 0:00:08]} O-O {[%emt 0:00:57]} 11. O-O {[%emt 0:00:19] B33: Sicilian: Pelikan and Sveshnikov Variations.} f5 {[%emt 0:00:30]} 12. Bd2 {[%emt 0:03:22]} f4 {[%emt 0:01:33]} 13. a5 {[%emt 0:16:50] [#]} a6 $146 {[%emt 0:01:33]} ({Predecessor:} 13... e4 14. Kh1 Nd7 15. Nc3 f3 16. gxf3 exf3 17. Bxf3 Ne5 18. Be4 Bg4 19. f3 Bh5 {1-0 (27) Sevian,S (2703)-Moiseenko,A (2582) Chess.com INT 2022}) 14. Nc3 {[%emt 0:05:49]} Bf5 {[%emt 0:00:41]} 15. Bg4 {[%emt 0:03:08]} (15. Re1 {is interesting.} Nd7 16. Bg4 Bxg4 17. Qxg4 Rc8 18. Ne4) 15... Qc8 {[%emt 0:03:09]} 16. Bxf5 {[%emt 0:10:22]} Qxf5 {[%emt 0:00:05]} 17. f3 {[%emt 0:00:13]} Nd7 {[%emt 0:00:40]} 18. Ne4 {[%emt 0:10:53]} Nf6 {[%emt 0:01:47]} 19. Nxf6+ {[%emt 0:06:30]} Rxf6 {[%emt 0:00:19]} 20. Be1 {[%emt 0:01:58]} Rc8 {[%emt 0:01:28]} 21. c3 {[%emt 0:02:11]} g5 {[%emt 0:00:20]} 22. b3 {[%emt 0:06:41]} Rg6 {[%emt 0:03:05]} 23. h3 {[%emt 0:07:03]} h5 {[%emt 0:00:25]} 24. Qb1 {[%emt 0:01:47]} Qf7 {[%emt 0:00:56]} 25. Kf2 {[%emt 0:08:56]} (25. Ra2 $15) 25... g4 $17 {[%emt 0:02:52]} 26. hxg4 {[%emt 0:00:10] [#]} hxg4 {[%emt 0:00:03]} (26... Bh4+ $1 $17 27. Ke2 (27. Kg1 Bxe1 28. gxh5 Rg7 $17) 27... Bxe1 28. Qxe1 Qxd5) 27. c4 $2 {[%emt 0:04:02] [#]} (27. Rh1 $1 $11 {and White has nothing to worry.}) 27... Kg7 $2 {[%emt 0:02:32]} ({Not} 27... gxf3 28. gxf3 Bh4+ 29. Ke2 Rg2+ 30. Kd1 Bxe1 31. Rxe1) ({Black should play} 27... e4 $1 $19 28. fxe4 f3) 28. Rh1 {[%emt 0:01:20]} (28. Ke2 $15) 28... Rg8 {[%emt 0:01:41]} ({Better is} 28... gxf3 $17 29. Kxf3 Rg8) 29. Ke2 $11 {[%emt 0:01:20]} Kf8 {[%emt 0:00:04]} 30. Bf2 {[%emt 0:00:42]} gxf3+ {[%emt 0:10:04]} (30... Rg5 $1 $11 31. Qh7 R8g7 32. Qh8+ Rg8) 31. gxf3 $16 {[%emt 0:00:06]} Bd8 {[%emt 0:00:13]} 32. Rh2 {[%emt 0:03:02]} Rg2 {[%emt 0:01:15]} 33. Rh7 {[%emt 0:03:27] The board is on fire.} R8g7 {[%emt 0:04:35]} 34. Rxg7 {[%emt 0:00:09]} (34. Rh6 $14) 34... Qxg7 {[%emt 0:00:08]} 35. Qf5+ {[%emt 0:00:48]} Qf7 {[%emt 0:00:02]} 36. Qxf7+ {[%emt 0:00:46]} (36. Qc8 {keeps more tension.} Qc7 37. Qh3 Qg7 38. Rh1) 36... Kxf7 $14 {[%emt 0:00:00][%mdl 4096] Endgame KRB-KRB. The position is equal.} 37. Kf1 {[%emt 0:01:21]} Rh2 {[%emt 0:00:02]} 38. Kg1 {[%emt 0:00:13]} Rh7 {[%emt 0:00:04]} 39. b4 {[%emt 0:01:12]} Kg6 {[%emt 0:01:59]} 40. Re1 {[%emt 0:02:05]} Kf5 {[%emt 0:01:57]} 41. Re4 {[%emt 0:30:39]} Bc7 {[%emt 0:34:04]} 42. Kg2 {[%emt 0:01:53]} Bd8 {[%emt 0:00:36]} 43. Kg1 {[%emt 0:00:20]} Bh4 {[%emt 0:00:39]} 44. Bxh4 {[%emt 0:00:00]} Rxh4 $11 {[%emt 0:00:00] KR-KR} 45. Kg2 {[%emt 0:00:00]} Rh7 {[%emt 0:00:00]} 46. Kg1 {[%emt 0:00:00]} Rh8 {[%emt 0:00:00]} 47. Kg2 {[%emt 0:00:00]} Rb8 {[%emt 0:00:00]} 48. Kf2 {[%emt 0:00:00]} Kf6 {[%emt 0:00:00]} 49. Re2 {[%emt 0:00:00]} Rc8 {[%emt 0:00:00]} 50. Re4 {[%emt 0:00:00]} Ke7 {[%emt 0:00:00]} 51. Kf1 {[%emt 0:00:00]} Kd7 {[%emt 0:00:00]} 52. Kf2 {[%emt 0:00:00]} Rb8 {[%emt 0:00:00]} 53. Re1 {[%emt 0:00:00]} Rc8 {[%emt 0:00:00]} 54. Rc1 {[%emt 0:00:08]} Ke7 {[%emt 0:00:00]} 55. c5 {[%emt 0:00:43]} dxc5 {[%emt 0:00:00]} 56. bxc5 {[%emt 0:02:52]} Rd8 $1 {[%emt 0:00:00]} 57. c6 {[%emt 0:00:30]} bxc6 {[%emt 0:00:00]} 58. Rxc6 {[%emt 0:00:04]} Rxd5 {[%emt 0:00:00]} 59. Rxa6 {[%emt 0:00:03]} Rd2+ {[%emt 0:00:00]} 60. Ke1 {[%emt 0:00:17]} Ra2 {[%emt 0:00:00]} 61. Kf1 {[%emt 0:00:10]} Kd7 {[%emt 0:00:00]} 62. Ke1 {[%emt 0:00:24]} Kc7 {[%emt 0:00:00]} 63. Kf1 $1 {[%emt 0:00:08]} Rb2 {[%emt 0:00:00]} 64. Re6 {[%emt 0:00:20] Weighted Error Value: White=0.17 (very precise) /Black=0.14 (very precise)} 1/2-1/2